Cogmind - Beta 11 X8 @@@ ROGUE MODE // 2021.11.09 @ 23:20:18 Player: Runia Result: Destroyed by 99-TNT with 99-TNT's Nukerbomber Performance ------------- Evolutions (1) 500 Regions Visited (6) 1200 Robots Destroyed (66) 330 Value Destroyed (1408) 1408 Prototype IDs (16) 320 Alien Tech Used (0) 0 Bonus (-1012) -1012 TOTAL SCORE: 2746 Bonus ------- High Alert Combat Kills 19 Follower Combat Kills 60 Friendly Fire -1091 Cogmind --------- Core Integrity 0/400 Matter 182/300 Energy 100/100 System Corruption 0% Temperature Cool (0) Movement Walking (120) Location -8/Mines Parts ------- > --- POWER (1) -------- (None) > --- PROPULSION (2) --- Advanced Myomer Leg Advanced Myomer Leg > --- UTILITY (3) ------ Large Storage Unit > --- WEAPON (3) ------- Mini Grenade Launcher Mini Grenade Launcher > --- INVENTORY (15) --- Cold Fusion Reactor High-capacity Matter Pod (0) Gravity Neutralizing Apparatus Advanced Transmission Jammer Advanced Component Analysis Suite Peak State ------------ > --- POWER ------------ Reinforced Fission Core > --- PROPULSION ------- Improved Treads Improved Treads > --- UTILITY ---------- Large Storage Unit Armor Integrity Analyzer Advanced Component Analysis Suite > --- WEAPON ----------- Improved Assault Rifle Improved Assault Rifle 8R-AWN's Boregun > --- INVENTORY -------- Cold Fusion Reactor Improved Treads Improved Treads Advanced Myomer Leg Advanced Myomer Leg Experimental Heat Sink High-capacity Matter Pod Gravity Neutralizing Apparatus Experimental Targeting Computer Light Armor Plating Autogun Autogun Autogun Mini Grenade Launcher Mini Grenade Launcher [Rating: 42] Favorites ----------- Power Light Angular Momentum Engine Engine Light Angular Momentum Engine Power Core Light Nuclear Core Propulsion Improved Treads Treads Improved Treads Leg Advanced Myomer Leg Utility Large Storage Unit Device Improved Heat Sink Storage Large Storage Unit Processor Armor Integrity Analyzer Protection Light Armor Plating Weapon Improved Assault Rifle Ballistic Gun Improved Assault Rifle Launcher Grenade Launcher Build | -11 -10 -10 -9 -9 -9 -8 ------- Run | Scr Mat Min Mat Min Exi Min Slots Evolved 2 | . . . 2 . . . Power . | . . . . . . . Propulsion . | . . . . . . . Utility 1 | . . . 1 . . . Weapon 1 | . . . 1 . . . Parts Attached 82 | 2 7 2 38 4 15 14 Power 5 | . . . 3 1 1 . Engine 3 | . . . 2 1 . . Core 2 | . . . 1 . 1 . Reactor . | . . . . . . . Propulsion 19 | 2 2 . 9 . 2 4 Treads 17 | 2 2 . 9 . 2 2 Leg 2 | . . . . . . 2 Wheel . | . . . . . . . Hover . | . . . . . . . Flight . | . . . . . . . Utility 22 | . 2 . 9 1 6 4 Device 6 | . 1 . 2 . 1 2 Storage 3 | . 1 . 1 . . 1 Processor 2 | . . . . . 1 1 Hackware . | . . . . . . . Protection 11 | . . . 6 1 4 . Artifact . | . . . . . . . Weapon 36 | . 3 2 17 2 6 6 Energy Gun . | . . . . . . . Energy Cannon . | . . . . . . . Ballistic Gun 26 | . 1 2 13 1 5 4 Ballistic Cannon . | . . . . . . . Launcher 10 | . 2 . 4 1 1 2 Special Weapon . | . . . . . . . Impact Weapon . | . . . . . . . Slashing Weapon . | . . . . . . . Piercing Weapon . | . . . . . . . Special Melee Weapon . | . . . . . . . Unidentified Prototypes 3 | . . . 2 . 1 . Parts Lost 19 | . . . 3 . 2 14 Power 1 | . . . . . . 1 Propulsion 5 | . . . . . 1 4 Utility 5 | . . . 2 . . 3 Weapon 8 | . . . 1 . 1 6 Highest Loss Streak 14 | . . . 2 . 2 14 Average Slot Usage (%) 97 | . 97 100 94 100 100 93 Engine 9 | . 14 14 4 10 8 . Core 2 | . . . 6 . 2 10 Treads 23 | . 28 28 21 22 22 18 Device 5 | . 11 14 2 . 2 3 Storage 11 | . 14 14 11 11 11 11 Processor 2 | . . . . . 7 10 Protection 11 | . . . 18 22 11 7 Ballistic Gun 29 | . 27 26 28 32 32 27 Naked Turns . | . . . . . . . Heaviest Build 59 | 13 31 30 42 46 59 56 Greatest Support 60 | 40 40 40 46 46 46 60 Greatest Overweight (x) 1 | . . . 1 . 1 1 Average Overweight (x) . | . . . . . . . Largest Inventory Capacity 15 | 8 15 15 15 15 15 15 Average Capacity 14 | 8 13 15 15 15 15 15 Most Carried 15 | 6 15 13 15 15 15 15 Average Carried 12 | 3 6 12 14 15 14 12 Final Capacity 15 | 8 15 15 15 15 15 15 Final Carried 15 | 1 13 13 15 15 15 5 Class Distribution -------------------- 51% | Mutant 33% | Tank 12% | Gunner Dominant Class ---------------- Mutant | -10/Materials Mutant | -10/Mines Tank | -9/Materials Tank | -9/Mines Gunner | -9/Exiles Gunner | -8/Mines Resources | -11 -10 -10 -9 -9 -9 -8 ----------- Run | Scr Mat Min Mat Min Exi Min Matter Collected 2537 | 200 297 110 875 297 758 . Remotely . | . . . . . . . Salvage Created 2606 | . 528 53 1090 359 576 . Parts 202 | . 37 . 75 19 71 . Haulers Intercepted 7 | . 2 . 5 . . . Recyclers Shooed 1 | . . . 1 . . . Parts Field Recycled . | . . . . . . . Retrieved Matter . | . . . . . . . Parts Self-Destructed . | . . . . . . . Prevented . | . . . . . . . Kills | -11 -10 -10 -9 -9 -9 -8 ------- Run | Scr Mat Min Mat Min Exi Min Combat Hostiles Destroyed 48 | . 12 1 23 5 7 . Guns 35 | . 10 1 15 5 4 . AOE 13 | . 2 . 8 . 3 . Classes Destroyed 11 | . 4 . 3 1 3 . Worker 1 | . . . 1 . . . Builder 1 | . . . . 1 . . Hauler 7 | . 2 . 5 . . . Recycler 1 | . . . 1 . . . Turret 1 | . . . . . 1 . Watcher 4 | . 2 . 2 . . . Swarmer 13 | . 3 . 10 . . . Grunt 21 | . 9 1 7 4 . . Sentry 7 | . . . 6 1 . . Zionite 6 | . . . . . 6 . Assembled 6 | . . . . . 6 . Best Kill Streak 6 | . 5 1 6 2 6 . Combat Bots Only 6 | . 4 1 4 2 6 . Max Kills in Single Turn 3 | . 1 1 3 1 2 . Gunslinging . | . . . . . . . Exploded 3 | . 1 . 3 . 2 . Melee . | . . . . . . . Uniques/NPCs Destroyed 5 | . . . . 1 4 . YI-UF0 (-9/Mines) 8R-AWN (-9/Exiles) EX-HEX (-9/Exiles) EX-DEC (-9/Exiles) EX-BIN (-9/Exiles) Combat | -11 -10 -10 -9 -9 -9 -8 -------- Run | Scr Mat Min Mat Min Exi Min Damage Taken 4543 | . 352 136 854 159 952 2090 Core 535 | . 48 29 103 27 148 180 Absorbed by Shields . | . . . . . . . Core Remaining (%) 84 | 100 . 69 . . . . Volleys Fired 250 | . 42 15 62 20 97 14 Largest 3 | . 2 2 3 3 3 3 Hottest 76 | . 40 40 69 69 76 76 Shots Fired 516 | . 80 30 166 56 145 39 Gun 501 | . 76 30 160 54 142 39 Cannon . | . . . . . . . Launcher 15 | . 4 . 6 2 3 . Special . | . . . . . . . Kinetic 501 | . 76 30 160 54 142 39 Thermal . | . . . . . . . Explosive 15 | . 4 . 6 2 3 . Electromagnetic . | . . . . . . . Robot Hit Streak 19 | . 13 4 11 19 9 11 Robot Miss Streak 4 | . 3 3 4 4 4 2 Penetration Max 2 | . . . . . 2 . Secondary Targets 2 | . . . 1 1 . . Max Gunslinging Chain 1 | . . . 1 1 . . Shots Hit Robots 330 | . 52 17 103 35 92 31 Core Hits 142 | . 26 4 48 14 44 6 Critical Kills 7 | . 1 . 1 . 5 . Critical Parts Destroyed 11 | . . 1 . . 10 . Critical Strikes 18 | . 1 1 1 . 15 . Destroy 18 | . 1 1 1 . 15 . Melee Attacks . | . . . . . . . Impact . | . . . . . . . Slashing . | . . . . . . . Piercing . | . . . . . . . Sneak Attacks . | . . . . . . . Combat Hostiles . | . . . . . . . Follow-up Attacks . | . . . . . . . Damage Inflicted 5225 | . 734 191 1754 660 1600 286 Guns 4255 | . 531 191 1270 613 1388 262 Cannons . | . . . . . . . Explosions 899 | . 203 . 484 . 212 . Melee . | . . . . . . . Ramming 71 | . . . . 47 . 24 Kinetic 4255 | . 531 191 1270 613 1388 262 Thermal . | . . . . . . . Explosive 899 | . 203 . 484 . 212 . Electromagnetic . | . . . . . . . Impact . | . . . . . . . Slashing . | . . . . . . . Piercing . | . . . . . . . Highest Corruption . | . . . . . . . Average Corruption . | . . . . . . . Corruption Purged . | . . . . . . . Overload Shots . | . . . . . . . Overflow Damage 2 | . . . 2 . . . Projectiles . | . . . . . . . Explosions 2 | . . . 2 . . . Melee . | . . . . . . . Knockbacks 1 | . . . . 1 . . Impact 1 | . . . . 1 . . Kinetic . | . . . . . . . Secondary . | . . . . . . . Self-Inflicted Damage 32 | . . . 32 . . . Shots 1 | . . . 1 . . . Rammed 8 | . . . . 8 . . Targets Rammed 17 | . . . . 8 . 9 Kicked 9 | . . . . . . 9 Crushed . | . . . . . . . Highest Temperature 241 | . 9 . 51 120 241 217 Average Temperature 69 | . 6 . 19 45 116 103 Received Heat Transfer 495 | . 135 78 222 60 . . Siege Activations . | . . . . . . . Robots Corrupted . | . . . . . . . Combat Hostiles . | . . . . . . . Parts Fried . | . . . . . . . Impact Corruptions . | . . . . . . . Robots Melted . | . . . . . . . Combat Hostiles . | . . . . . . . Parts Melted . | . . . . . . . Heat Transferred . | . . . . . . . Parts Sabotaged . | . . . . . . . Parts Stolen . | . . . . . . . Parts Stripped . | . . . . . . . Power Chain Reactions . | . . . . . . . Missiles Intercepted . | . . . . . . . Alert | -11 -10 -10 -9 -9 -9 -8 ------- Run | Scr Mat Min Mat Min Exi Min Peak Influence 418 | . 301 85 418 160 . . Initial 99 | . . 40 . 99 . . Average 160 | . 125 36 300 72 . . Maximum Alert Level 2 | . 1 . 2 . . . Low Security (%) 59 | 100 72 100 7 100 . 100 Level 1 36 | . 27 . 81 . . . Level 2 4 | . . . 11 . . . Level 3 . | . . . . . . . Level 4 . | . . . . . . . Level 5 . | . . . . . . . High Security . | . . . . . . . Max Security . | . . . . . . . Squads Dispatched 3 | . 2 . 1 . . . Investigation 2 | . 2 . . . . . Extermination . | . . . . . . . Reinforcement 1 | . . . 1 . . . Assault . | . . . . . . . Garrison . | . . . . . . . Intercept . | . . . . . . . Construction Impeded . | . . . . . . . Haulers Reinforced . | . . . . . . . Active Scanning Responses . | . . . . . . . Cargo Convoy Interrupts . | . . . . . . . Stealth | -11 -10 -10 -9 -9 -9 -8 --------- Run | Scr Mat Min Mat Min Exi Min Distress Signals 2 | . 1 . 1 . . . Communications Jammed . | . . . . . . . Distress Signals . | . . . . . . . Times Spotted 108 | . 18 2 39 8 40 1 Peak Tracking Total 10 | . 4 2 4 3 10 1 Tactical Retreats 21 | . 2 1 . . 18 . Traps | -11 -10 -10 -9 -9 -9 -8 ------- Run | Scr Mat Min Mat Min Exi Min Traps Triggered 6 | . . . 6 . . . Indirectly . | . . . . . . . Trap Hack Attempts . | . . . . . . . Triggered . | . . . . . . . Disarmed . | . . . . . . . Reprogrammed . | . . . . . . . Reused . | . . . . . . . Traps Extracted . | . . . . . . . Installed . | . . . . . . . Triggered . | . . . . . . . Exploded 3 | . . . . . 3 . Machines | -11 -10 -10 -9 -9 -9 -8 ---------- Run | Scr Mat Min Mat Min Exi Min Machines Disabled 14 | . 3 . . . 11 . Max in Single Turn 2 | . 2 . . . 1 . Machines Sabotaged . | . . . . . . . Garrisons Compromised . | . . . . . . . Overloaded Fab Kills . | . . . . . . . Hacking | -11 -10 -10 -9 -9 -9 -8 --------- Run | Scr Mat Min Mat Min Exi Min Machines Accessed 22 | . 10 . 10 1 1 . Terminals 16 | . 8 . 7 1 . . Fabricators . | . . . . . . . Repair Stations 1 | . . . 1 . . . Recycling Units 3 | . 2 . 1 . . . Scanalyzers 1 | . . . 1 . . . Garrison Access . | . . . . . . . Total Hacks 67 | . 28 . 35 3 1 . Successful 34 | . 14 . 18 1 1 . Failed 33 | . 14 . 17 2 . . Catastrophic 3 | . 3 . . . . . Database Lockouts . | . . . . . . . Manual 18 | . 11 . 4 3 . . Terminals 49 | . 24 . 22 3 . . Fabricators . | . . . . . . . Repair Stations 5 | . . . 5 . . . Recycling Units 6 | . 4 . 2 . . . Scanalyzers 6 | . . . 6 . . . Garrison Access . | . . . . . . . Terminal Hacks 21 | . 10 . 9 1 1 . Record 1 | . . . . . 1 . Part Schematic 2 | . 2 . . . . . Robot Analysis 1 | . 1 . . . . . Prototype ID Bank 5 | . 2 . 2 1 . . Branch Access Points 1 | . 1 . . . . . Emergency Access Points 2 | . . . 2 . . . Terminal Index 1 | . 1 . . . . . Locate Traps 5 | . 2 . 3 . . . Hauler Manifests 1 | . . . 1 . . . Zone Layout 2 | . 1 . 1 . . . Fabricator Hacks . | . . . . . . . Repair Station Hacks 2 | . . . 2 . . . Scan Component 1 | . . . 1 . . . Repair 1 | . . . 1 . . . Recycling Unit Hacks 4 | . 2 . 2 . . . Report Inventory 3 | . 2 . 1 . . . Retrieve Components 1 | . . . 1 . . . Scanalyzer 5 | . . . 5 . . . Insert Component 3 | . . . 3 . . . Analyze 2 | . . . 2 . . . Garrison Access Hacks . | . . . . . . . Unauthorized Hacks 2 | . 2 . . . . . Terminals . | . . . . . . . Fabricators . | . . . . . . . Repair Stations . | . . . . . . . Recycling Units 2 | . 2 . . . . . Tunnel 2 | . 2 . . . . . Scanalyzers . | . . . . . . . Garrison Access . | . . . . . . . Data Cores Recovered . | . . . . . . . Used . | . . . . . . . Hacking Detections 19 | . 8 . 10 1 . . Full Trace Events . | . . . . . . . Feedback Events . | . . . . . . . Feedback Blocked . | . . . . . . . Robot Schematics Acquired . | . . . . . . . Robots Built . | . . . . . . . Authchips . | . . . . . . . Time . | . . . . . . . Total Robot Build Rating . | . . . . . . . Part Schematics Acquired 4 | . 2 . 2 . . . Parts Built . | . . . . . . . Authchips . | . . . . . . . Time . | . . . . . . . Total Part Build Rating . | . . . . . . . Parts Repaired 1 | . . . 1 . . . Time 26 | . . . 26 . . . Parts Recycled . | . . . . . . . Recycled Matter . | . . . . . . . Retrieved Matter . | . . . . . . . Retrieved Components 10 | . . . 10 . . . Parts Scanalyzed 2 | . . . 2 . . . Part Schematics Acquired 2 | . . . 2 . . . Parts Damaged . | . . . . . . . Bothacking | -11 -10 -10 -9 -9 -9 -8 ------------ Run | Scr Mat Min Mat Min Exi Min Used RIF Installer . | . . . . . . . Robots Hacked . | . . . . . . . Non-combat . | . . . . . . . Combat . | . . . . . . . Robot Hacks Applied . | . . . . . . . Relay Couplers Released . | . . . . . . . Fabnet Peak Effective % . | . . . . . . . Robots Rewired . | . . . . . . . Allies Hacked . | . . . . . . . Hacks Repelled . | . . . . . . . Allies | -11 -10 -10 -9 -9 -9 -8 -------- Run | Scr Mat Min Mat Min Exi Min Total Allies 4 | . . 1 . 3 . . Largest Group 3 | . . 1 . 3 2 2 Highest-Rated Group 40 | . . 31 . 40 24 24 Highest-Rated Ally 31 | . . 31 . 16 16 16 Total Orders 3 | . . . . . 3 . STAY 2 | . . . . . 2 . FOLLOW 1 | . . . . . 1 . Ally Attacks 18 | . . . . 18 . . Total Damage 216 | . . . . 216 . . Kills 2 | . . . . 2 . . Allies Corrupted . | . . . . . . . Allies Melted . | . . . . . . . Intel | -11 -10 -10 -9 -9 -9 -8 ------- Run | Scr Mat Min Mat Min Exi Min Robot Analysis Total 1 | . 1 . . . . . Derelict Logs Recovered 2 | . . 1 . 1 . . Drone Launches . | . . . . . . . Drone Recoveries . | . . . . . . . Exploration | -11 -10 -10 -9 -9 -9 -8 ------------- Run | Scr Mat Min Mat Min Exi Min Turns Passed 6577 | 5 1227 797 1821 1034 1561 132 Spaces Moved 3377 | 1 671 470 936 597 674 28 Core . | . . . . . . . Treads 3374 | 1 671 470 936 597 674 25 Legs 3 | . . . . . . 3 Wheels . | . . . . . . . Hover . | . . . . . . . Flight . | . . . . . . . Fastest Speed 120 | 160 160 160 160 160 160 120 Average Speed 163 | 160 160 160 160 160 172 227 Slowest Speed 240 | 160 160 160 240 160 240 240 Overloaded Moves . | . . . . . . . Propulsion Burnouts . | . . . . . . . Robots Hopped . | . . . . . . . Cave-ins Triggered . | . . . . . . . Exploration Rate (%) 66 | 2 95 94 80 99 76 18 Regions Visited 6 Branch Regions 4 Pre-discovered Areas 3 | . 2 . . . 1 . Known Exits Taken 3 | . 1 . 1 . 1 . Unknown Exits Taken 3 | 1 . 1 . 1 . . Scrap Searched 2 | . . 1 . 1 . . Spaces Dug 13 | . . . . 13 . . Terrain Destroyed 117 | . 21 . 41 24 31 . Melee . | . . . . . . . Projectile 15 | . . . . . 15 . AOE 100 | . 21 . 41 24 14 . Terrain Rammed . | . . . . . . . Walls Destroyed . | . . . . . . . Machines Disabled . | . . . . . . . Actions | -11 -10 -10 -9 -9 -9 -8 --------- Run | Scr Mat Min Mat Min Exi Min Total 4029 | 7 750 488 1135 632 952 65 Wait 199 | . 16 . 48 2 133 . Move 3371 | . 670 469 935 596 673 28 Hop . | . . . . . . . Pick Up 52 | . 12 1 22 . 17 . Fast Attach 18 | . 1 . 13 1 3 . Attach 19 | 2 . . 4 . 3 10 Detach 1 | . . . 1 . . . Swap 45 | . 6 2 21 3 9 4 Drop 57 | 5 3 1 29 2 17 . Fire 250 | . 42 15 62 20 97 14 Melee . | . . . . . . . Ram . | . . . . . . . Kick 9 | . . . . . . 9 Crush 8 | . . . . 8 . . Escape Stasis . | . . . . . . . Rewire . | . . . . . . . Trap . | . . . . . . . Miscellaneous . | . . . . . . . Route ------- -11/Scrapyard -10/Materials (discovered 3 exits: *Mat x2 / *Min) -10/Mines (discovered 2 exits: *Mat x2) -9/Materials (discovered 3 exits: [*Mat x2] / *Min) -9/Mines (discovered 4 exits: [*Mat x2] / *Exi / [*Zio]) -9/Exiles (discovered 2 exits: *Min x2) -8/Mines History --------- Turn | Location | Event 6 | -11/Scrapyard | Discovered new exit (range 0) 6 | -11/Scrapyard | Entered Materials 42 | -10/Materials | Identified exit to Mines 304 | -10/Materials | Build established: Mutant 595 | -10/Materials | Discovered new exit (range 16) 991 | -10/Materials | Discovered new exit (range 10) 1233 | -10/Materials | Entered Mines 1234 | -10/Mines | Assembled infested the area 1239 | -10/Mines | Assisted by a Guerilla fighting off Assembled 1375 | -10/Mines | Discovered new exit (range 6) 1453 | -10/Mines | Discovered new exit (range 5) 1542 | -10/Mines | Found a damaged Exp. Sensor Array with a note attached 1545 | -10/Mines | Found Prototype Device 1634 | -10/Mines | Received a Mining Laser from a helpful Derelict 2030 | -10/Mines | Entered Materials 2030 | -9/Materials | Evolved 2 slots: Utility x1, Weapon x1 2031 | -9/Materials | Identified exit to Mines 2031 | -9/Materials | Identified Exp. Sensor Array 2596 | -9/Materials | Build established: Tank 2963 | -9/Materials | Discovered new exit (range 11) 3087 | -9/Materials | Build established: Mutant 3584 | -9/Materials | Repaired Lgt. Armor Plating 3615 | -9/Materials | Discovered new exit (range 7) 3782 | -9/Materials | Build established: Tank 3851 | -9/Materials | Entered Mines 3856 | -9/Mines | Joined a pair of Derelicts in attacking an 0b10 outpost 3928 | -9/Mines | Discovered new exit (range 14) 3952 | -9/Mines | Assisted by bots powering up and referring to "LRC-V3" 4039 | -9/Mines | YI-UF0 nonchalantly dropped a Grenade Launcher on the ground 4068 | -9/Mines | Destroyed YI-UF0 4339 | -9/Mines | A Derelict revealed a hidden shortcut to a safe place 4472 | -9/Mines | Learned location of 1 exit from Materials 4482 | -9/Mines | Discovered new exit (range 14) 4877 | -9/Mines | Deemed a non-threat by the Exiles lab entrance 4879 | -9/Mines | Discovered new exit (range 5) 4885 | -9/Mines | Entered Exiles 4885 | -9/Exiles | Accompanied by 2 allies 4886 | -9/Exiles | Identified exit to Mines 4924 | -9/Exiles | Met 8R-AWN 4969 | -9/Exiles | Met EX-HEX 5031 | -9/Exiles | Met EX-DEC 5042 | -9/Exiles | Learned location of Zion (-7) 5137 | -9/Exiles | Discovered exit to Mines (range 10) 5273 | -9/Exiles | Build established: Gunner 5534 | -9/Exiles | Attacked by the Exiles 5661 | -9/Exiles | Core integrity fell below 50% 5669 | -9/Exiles | Destroyed 8R-AWN 5675 | -9/Exiles | Found Prototype Ballistic Gun 5695 | -9/Exiles | Found Prototype Processor 5729 | -9/Exiles | Identified 8R-AWN's Boregun 5980 | -9/Exiles | Destroyed EX-HEX 6032 | -9/Exiles | Build established: Mutant 6047 | -9/Exiles | Destroyed EX-DEC 6062 | -9/Exiles | Destroyed EX-BIN 6167 | -9/Exiles | Identified Exp. Targeting Computer 6446 | -9/Exiles | Entered Mines 6446 | -8/Mines | Accompanied by 2 allies 6504 | -8/Mines | 99-TNT came to Exiles' defense 6535 | -8/Mines | Core integrity fell below 20% 6578 | -8/Mines | Destroyed by 99-TNT with 99-TNT's Nukerbomber Last Messages --------------- 06562_ Imp. Treads destroyed. 06563_ The unstable cave ceiling collapses. 06566_ Rnf. Fission Core destroyed. 06566_ Exp. Targeting Computer destroyed. 06566_ Kicked 99-TNT out of the way. 06567_ The unstable cave ceiling collapses. 06569_ Kicked 99-TNT. 06570_ The unstable cave ceiling collapses. 06570_ Kicked 99-TNT. 06571_ The unstable cave ceiling collapses. 06571_ Kicked 99-TNT out of the way. 06572_ Kicked 99-TNT. 06573_ The unstable cave ceiling collapses. 06574_ Kicked 99-TNT. 06574_ Exp. Heat Sink destroyed. 06574_ K-01 Serf collects debris. 06575_ The unstable cave ceiling collapses. 06575_ Kicked 99-TNT out of the way. 06576_ Kicked 99-TNT. 06578_ K-01 Serf collects debris. Map ----- +----------------------------------------------------+ | ?????????????????????????????????????????????????? | | ?????????????????????????????????????????????????? | | ?????????????????????????????????????????????????? | | ?????????????????????????????????????????????????? | | ?????????????????????????????????????????????????? | | ?????????????????????????????????????????????????? | | ?????????????????????????????????????????????????? | | ?????????????????????????????????????????????????? | | ?????????????????????????????????????????????????? | | ?????????????????????????????????????????????????? | | ?????????????????????????????????????????????????? | | ?????????????????????????????????????????????????? | | ?????????????????????????????????????????????????? | | ???????????????????????????????????????? ???????? | | ??????????????????????????????????????? ???????? | | ??????????????????#???????????????????? ???????? | | ?????????????????## ???????????????????# ???????? | | ????????????????## ??????????????????## #???????? | | ???????????????## ????????????????## #???????? | | ??????????????## k#??????????????## ##??????? | | ??????????????# #?????#######?# ##?????? | | ??????????????? ###### # ### #?????? | | ????????????????? ### ##????? | | ???????????????????# # # # ## ###### | | ????????????????????# d # ## | | ????????????????????# @ # # "" | | ????????????????????# "" | | ????????????????????# "" | | ????????????????????# | | ????????????????????# # # ## # "" | | ????????????????????## # # # "" | | ?????????????????????## # # "" | | ??????????????????????##### ## # # | | ??????????????????????????## # ## ##### | | ???????????????????????????### ????? | | ?????????????????????????????#### ????? | | ?????????????????????????????????### ?????? | | ????????????????????????????????????# ?????? | | ?????????????????????????????????????# ??????? | | ??????????????????????????????????????? # ??????? | | | | | | | | | | | | | | | | | | | | | +----------------------------------------------------+ Best States ------------- Heat Dissipation 54 Energy Generation 19 Energy Capacity 310 Matter Stores 300 Matter Capacity 300 Sight Range 16 Terrain Scan Density 10 Armor Coverage 300 Evasion (%) 45 Targeting Accuracy 12 Armor Integrity Analysis 20 Recoil Reduction 2 Item Schematics ----------------- Hcp. Storage Unit | -10/Materials | Hacked Huge Storage Unit | -10/Materials | Hacked Exp. Sensor Array | -9/Materials | Scanalyzed Imp. Treads | -9/Materials | Scanalyzed Robot Schematics ------------------ None Fabricated ------------ Nothing Alien Tech Used ----------------- None Achievements -------------- None Challenges ------------ None Game ------ Seed FlakChromaticExpander Manual? 0 Play Time 00:34:39 Cumulative 458.3 hours Start 2021.11.09 @ 22:17:52 End 2021.11.09 @ 23:20:18 Sessions 1 Manual Loads 0 Difficulty Rogue Special Mode None Game No. 460 Rogue 460 Adventurer 0 Explorer 0 Win Type - Total 9 Types 8/0/0/1/0/0/0/0/0 Lore% 80 Gallery% 93 Achievement% 70 Wizard Run 0 Options --------- ASCII 0 Keyboard 0 Movement Mouse Keybinds 1 Fullscreen 2 Font 24/Smallcaps Map View 76x50 Tactical HUD 1 Map Filters NONE Filters NONE Steam 1 RUN: caecb991-badf-4f8a-8a09-cda1dc359b0c